[Event "46th GRE-chT Premier 2018"]
[Site "Rio Achaia"]
[Date "2018.07.12"]
[Round "4"]
[White "Papadopoulos, Argirios"]
[Black "Karakatsanis, Nikolaos"]
[Result "1-0"]
[ECO "C42"]
[WhiteElo "2256"]
[BlackElo "1907"]
[Annotator "NA"]
[PlyCount "91"]
[EventDate "2018.07.10"]
[EventType "team-tourn"]
[EventCountry "GRE"]
[SourceTitle "playchess.com"]
[Source "ChessBase"]
[SourceQuality "1"]
[TimeControl "40/5400+30:1800+30"]

1. e4 {[%emt 0:08:13]} e5 2. Nf3 {[%emt 0:00:37]} Nf6 {[%emt 0:00:00]} 3. Nxe5 {[%emt 0:02:35]} d6 {[%emt 0:00:00]} 4. Nf3 {[%emt 0:00:11]} Nxe4 {[%emt 0:00:00]} 5. Nc3 {[%emt 0:00:05]} Nxc3 {[%emt 0:00:00]} 6. dxc3 {[%emt 0:00:04]} Be7 {[%emt 0:00:00]} 7. Be3 {[%emt 0:04:53]} Nc6 {[%emt 0:00:10]} 8. Qd2 {[%emt 0:00:21]} Be6 {[%emt 0:00:06]} 9. O-O-O {[%emt 0:15:05]} Qd7 {[%emt 0:00:26]} 10. Kb1 {[%emt 0:08:35]} a6 {[%emt 0:00:30]} 11. Nd4 {[%emt 0:04:47]} Nxd4 {[%emt 0:00:06]} 12. Bxd4 {[%emt 0:02:11]} O-O {[%emt 0:00:38]} 13. h4 {[%emt 0:06:34]} c5 {[%emt 0:01:08]} 14. Bxc5 {[%emt 0:15:47]} dxc5 {[%emt 0:04:25]} 15. Qxd7 {[%emt 0:00:58]} Bxd7 {[%emt 0:00:04]} 16. Rxd7 {[%emt 0:00:08]} Rfd8 {[%emt 0:00:03]} 17. Rd3 {[%emt 0:04:29]} c4 {[%emt 0:02:57]} 18. Rxd8+ {[%emt 0:18:48]} Rxd8 {[%emt 0:00:04]} 19. Kc1 {[%emt 0:00:36]} Bc5 {[%emt 0:01:12]} 20. Bxc4 {[%emt 0:00:12]} Bxf2 {[%emt 0:00:05]} 21. Bxf7+ {[%emt 0:00:59]} Kxf7 {[%emt 0:12:48]} 22. Rf1 {[%emt 0:00:08]} Rd7 {[%emt 0:00:10]} 23. Rxf2+ {[%emt 0:00:41]} Ke6 {[%emt 0:00:10]} 24. a4 {[%emt 0:02:54]} b6 {[%emt 0:01:06]} 25. b3 {[%emt 0:00:32]} h5 {[%emt 0:01:01]} 26. Kb2 {[%emt 0:01:34]} Ke5 {[%emt 0:00:07]} 27. Re2+ {[%emt 0:00:35]} Kf5 {[%emt 0:00:28]} 28. g3 {[%emt 0:00:42]} Rd6 {[%emt 0:02:05]} 29. b4 {[%emt 0:00:22]} b5 {[%emt 0:01:16]} 30. Kb3 {[%emt 0:00:21]} Rc6 {[%emt 0:00:18]} 31. a5 {[%emt 0:00:55]} Kg4 {[%emt 0:00:59]} 32. Re3 {[%emt 0:00:27]} g6 {[%emt 0:00:05]} 33. Rd3 {[%emt 0:00:13]} Kh3 {[%emt 0:00:07]} 34. Kb2 {[%emt 0:00:45]} Kg4 {[%emt 0:11:13]} 35. Kc1 {[%emt 0:00:11]} Kh3 {[%emt 0:00:06]} 36. Kd2 {[%emt 0:00:12]} Kg4 {[%emt 0:02:10]} 37. Ke2 {[%emt 0:00:40]} Kh3 {[%emt 0:00:06]} 38. Kf3 {[%emt 0:01:06]} Rc4 {[%emt 0:00:19]} 39. Kf2 {[%emt 0:00:24]} Rc6 {[%emt 0:00:04]} 40. Re3 {[%emt 0:00:00]} Rf6+ {[%emt 0:00:00]} 41. Ke2 {[%emt 0:03:23]} Rd6 {[%emt 0:01:08]} 42. Kf3 {[%emt 0:04:24]} Rf6+ {[%emt 0:42:57]} 43. Ke4 {[%emt 0:03:24]} Kg4 {[%emt 0:02:11]} 44. Kd5 {[%emt 0:05:57]} Rf5+ {[%emt 0:00:53]} 45. Kc6 {[%emt 0:00:44]} Rf6+ {[%emt 0:00:21]} 46. Kb7 {[%emt 0:00:41]} 1-0

[Event "46th GRE-chT Premier 2018"]
[Site "Rio Achaia"]
[Date "2018.07.12"]
[Round "4"]
[White "Karousos-Theodorakis, Nikolaos"]
[Black "Blitsas, Orestis"]
[Result "1-0"]
[ECO "C03"]
[WhiteElo "2255"]
[BlackElo "1584"]
[Annotator "NA"]
[PlyCount "73"]
[EventDate "2018.07.10"]
[EventType "team-tourn"]
[EventCountry "GRE"]
[SourceTitle "playchess.com"]
[Source "ChessBase"]
[SourceQuality "1"]
[TimeControl "40/5400+30:1800+30"]

1. e4 {[%emt 0:00:00]} e6 {[%emt 0:00:00]} 2. d4 {[%emt 0:00:00]} d5 {[%emt 0:00:00]} 3. Nd2 {[%emt 0:00:00]} Be7 {[%emt 0:00:00]} 4. Ngf3 {[%emt 0:00:00]} Nf6 {[%emt 0:01:19]} 5. Bd3 {[%emt 0:00:53]} c5 {[%emt 0:00:39]} 6. dxc5 {[%emt 0:01:59]} Nc6 {[%emt 0:01:07]} 7. O-O {[%emt 0:02:35]} O-O {[%emt 0:25:24]} 8. c3 {[%emt 0:05:07]} Bxc5 {[%emt 0:14:23]} 9. b4 {[%emt 0:08:32]} Be7 {[%emt 0:04:00]} 10. Qc2 {[%emt 0:04:45]} h6 {[%emt 0:04:08]} 11. a3 {[%emt 0:05:36]} Qc7 {[%emt 0:06:57]} 12. c4 {[%emt 0:06:59]} dxe4 {[%emt 0:03:07]} 13. Nxe4 {[%emt 0:00:25]} Nxe4 {[%emt 0:08:10]} 14. Bxe4 {[%emt 0:00:13]} Bf6 {[%emt 0:00:25]} 15. Bb2 {[%emt 0:06:32]} Bxb2 {[%emt 0:03:07]} 16. Qxb2 {[%emt 0:00:05]} Bd7 {[%emt 0:00:27]} 17. Rfd1 {[%emt 0:05:47]} Ne7 {[%emt 0:03:45]} 18. c5 {[%emt 0:07:30]} Bc6 {[%emt 0:01:44]} 19. Bxc6 {[%emt 0:01:21]} Nxc6 {[%emt 0:00:07]} 20. Rd6 {[%emt 0:02:32]} Rfd8 {[%emt 0:00:28]} 21. Rad1 {[%emt 0:00:10]} Rxd6 {[%emt 0:01:45]} 22. cxd6 {[%emt 0:00:39]} Rd8 {[%emt 0:00:13]} 23. Qd2 {[%emt 0:01:04]} Qb6 {[%emt 0:00:23]} 24. Qd3 {[%emt 0:03:39]} a6 {[%emt 0:02:07]} 25. h3 {[%emt 0:02:43]} Rd7 {[%emt 0:00:47]} 26. Qc3 {[%emt 0:09:01]} Kf8 {[%emt 0:05:03]} 27. Rd3 {[%emt 0:03:13]} Qb5 {[%emt 0:03:50]} 28. Nd4 {[%emt 0:03:06]} Qb6 {[%emt 0:00:27]} 29. Nb3 {[%emt 0:00:35]} Qd8 {[%emt 0:01:22]} 30. Qc5 {[%emt 0:01:34]} Kg8 {[%emt 0:00:59]} 31. a4 {[%emt 0:01:49]} f6 {[%emt 0:01:44]} 32. f4 {[%emt 0:01:42]} Nb8 {[%emt 0:03:26]} 33. b5 {[%emt 0:01:24]} axb5 {[%emt 0:00:25]} 34. axb5 {[%emt 0:00:09]} b6 {[%emt 0:01:15]} 35. Qc4 {[%emt 0:01:04]} Kf7 {[%emt 0:00:33]} 36. f5 {[%emt 0:01:09]} Kf8 {[%emt 0:01:56]} 37. Nd4 {[%emt 0:02:10]} 1-0

[Event "46th GRE-chT Premier 2018"]
[Site "Rio Achaia"]
[Date "2018.07.12"]
[Round "4"]
[White "Hadzimanolis, Antonios"]
[Black "Roinos, Ilias"]
[Result "0-1"]
[ECO "A08"]
[WhiteElo "2246"]
[BlackElo "2220"]
[Annotator "NA"]
[PlyCount "68"]
[EventDate "2018.07.10"]
[EventType "team-tourn"]
[EventCountry "GRE"]
[SourceTitle "playchess.com"]
[Source "ChessBase"]
[SourceQuality "1"]
[TimeControl "40/5400+30:1800+30"]

1. Nf3 {[%emt 0:00:00]} d5 {[%emt 0:00:47]} 2. g3 {[%emt 0:00:00]} c5 {[%emt 0:00:18]} 3. Bg2 {[%emt 0:00:00]} Nf6 {[%emt 0:00:07]} 4. O-O {[%emt 0:01:10]} Nc6 {[%emt 0:00:16]} 5. c4 {[%emt 0:00:41]} e6 {[%emt 0:00:11]} 6. b3 {[%emt 0:00:33]} Be7 {[%emt 0:00:09]} 7. Bb2 {[%emt 0:00:06]} O-O {[%emt 0:00:10]} 8. d3 {[%emt 0:00:46]} a6 {[%emt 0:05:45]} 9. Nbd2 {[%emt 0:03:10]} b5 {[%emt 0:01:11]} 10. e3 {[%emt 0:18:26]} Qc7 {[%emt 0:07:35]} 11. Qe2 {[%emt 0:02:04]} Rd8 {[%emt 0:04:28]} 12. Rfc1 {[%emt 0:05:20]} bxc4 {[%emt 0:15:33]} 13. bxc4 {[%emt 0:01:13]} Rb8 {[%emt 0:02:31]} 14. Nb3 {[%emt 0:04:42]} Nd7 {[%emt 0:13:54]} 15. Ba3 {[%emt 0:18:16]} dxc4 {[%emt 0:18:34]} 16. Rxc4 {[%emt 0:06:16]} Na5 {[%emt 0:00:35]} 17. Nxa5 {[%emt 0:05:15]} Qxa5 {[%emt 0:04:29]} 18. Bb2 {[%emt 0:00:07]} Qb5 {[%emt 0:03:39]} 19. Rc2 {[%emt 0:06:07]} Bb7 {[%emt 0:01:22]} 20. Rac1 {[%emt 0:00:49]} a5 {[%emt 0:02:38]} 21. Bc3 {[%emt 0:04:26]} Ba6 {[%emt 0:01:47]} 22. Qe1 {[%emt 0:01:09]} Qxd3 {[%emt 0:03:01]} 23. Bxa5 {[%emt 0:00:16]} Rdc8 {[%emt 0:00:18]} 24. Nd2 {[%emt 0:06:04]} Qa3 {[%emt 0:00:42]} 25. Nb3 {[%emt 0:01:36]} Ne5 {[%emt 0:01:08]} 26. Rd1 {[%emt 0:04:58]} Nd3 {[%emt 0:03:12]} 27. Qd2 {[%emt 0:00:03]} c4 {[%emt 0:02:34]} 28. Nd4 {[%emt 0:00:35]} Qa4 {[%emt 0:00:23]} 29. f4 {[%emt 0:04:27]} g6 {[%emt 0:01:02]} 30. Nc6 {[%emt 0:01:04]} Rxc6 {[%emt 0:01:21]} 31. Bxc6 {[%emt 0:00:02]} Qxc6 {[%emt 0:00:31]} 32. Qxd3 {[%emt 0:00:02]} Bb7 {[%emt 0:00:27]} 33. Qxc4 {[%emt 0:00:18]} Qh1+ {[%emt 0:00:21]} 34. Kf2 {[%emt 0:00:02]} Qxd1 {[%emt 0:00:49]} 0-1

[Event "46th GRE-chT Premier 2018"]
[Site "Rio Achaia"]
[Date "2018.07.12"]
[Round "4"]
[White "Alexiadis, Hristos"]
[Black "Dimitrov, Atanas"]
[Result "0-1"]
[ECO "D10"]
[WhiteElo "2244"]
[BlackElo "2294"]
[Annotator "NA"]
[PlyCount "78"]
[EventDate "2018.07.10"]
[EventType "team-tourn"]
[EventCountry "GRE"]
[SourceTitle "playchess.com"]
[Source "ChessBase"]
[SourceQuality "1"]
[TimeControl "40/5400+30:1800+30"]

1. d4 {[%emt 0:00:00]} Nf6 {[%emt 0:01:03]} 2. Nf3 {[%emt 0:00:25]} d5 {[%emt 0:04:00]} 3. c4 {[%emt 0:00:12]} c6 {[%emt 0:00:37]} 4. cxd5 {[%emt 0:00:43]} cxd5 {[%emt 0:00:03]} 5. Nc3 {[%emt 0:00:33]} Nc6 {[%emt 0:00:09]} 6. Bf4 {[%emt 0:00:08]} e6 {[%emt 0:00:58]} 7. e3 {[%emt 0:01:13]} Be7 {[%emt 0:00:14]} 8. h3 {[%emt 0:01:10]} O-O {[%emt 0:00:09]} 9. Bd3 {[%emt 0:00:21]} Bd7 {[%emt 0:00:11]} 10. O-O {[%emt 0:01:32]} Qa5 {[%emt 0:01:14]} 11. Qb3 {[%emt 0:05:47]} Qb4 {[%emt 0:04:51]} 12. Qxb4 {[%emt 0:03:32]} Nxb4 {[%emt 0:00:11]} 13. Be2 {[%emt 0:00:05]} Rfc8 {[%emt 0:01:23]} 14. Ne5 {[%emt 0:01:38]} Be8 {[%emt 0:00:40]} 15. f3 {[%emt 0:06:11]} Nh5 {[%emt 0:01:29]} 16. Rac1 {[%emt 0:11:36]} Nxf4 {[%emt 0:00:08]} 17. exf4 {[%emt 0:00:04]} f6 {[%emt 0:02:56]} 18. Ng4 {[%emt 0:01:43]} Bd6 {[%emt 0:18:57]} 19. g3 {[%emt 0:07:27]} h5 {[%emt 0:00:28]} 20. Ne3 {[%emt 0:00:08]} h4 {[%emt 0:01:22]} 21. f5 {[%emt 0:00:40]} hxg3 {[%emt 0:04:08]} 22. f4 {[%emt 0:02:11]} Bd7 {[%emt 0:07:58]} 23. a3 {[%emt 0:04:58]} Nc6 {[%emt 0:00:45]} 24. fxe6 {[%emt 0:10:15]} Bxe6 {[%emt 0:00:02]} 25. Bg4 {[%emt 0:03:34]} Nxd4 {[%emt 0:07:29]} 26. Bxe6+ {[%emt 0:11:33]} Nxe6 {[%emt 0:00:02]} 27. Nexd5 {[%emt 0:00:14]} Rc4 {[%emt 0:03:36]} 28. b3 {[%emt 0:03:02]} Rxf4 {[%emt 0:00:53]} 29. Nxf4 {[%emt 0:00:50]} Nxf4 {[%emt 0:00:17]} 30. b4 {[%emt 0:01:42]} Be5 {[%emt 0:27:52]} 31. Rcd1 {[%emt 0:07:30]} Nxh3+ {[%emt 0:01:03]} 32. Kg2 {[%emt 0:00:09]} Nf4+ {[%emt 0:02:47]} 33. Kg1 {[%emt 0:04:34]} Nh3+ {[%emt 0:00:46]} 34. Kg2 {[%emt 0:00:05]} Nf4+ {[%emt 0:00:04]} 35. Kg1 {[%emt 0:01:02]} Rc8 {[%emt 0:00:10]} 36. Ne4 {[%emt 0:00:08]} Rc2 {[%emt 0:02:02]} 37. Rd8+ {[%emt 0:01:16]} Kh7 {[%emt 0:00:31]} 38. Nd2 {[%emt 0:00:39]} Bd4+ {[%emt 0:00:34]} 39. Rxd4 {[%emt 0:00:14]} Ne2+ {[%emt 0:00:01]} 0-1

[Event "46th GRE-chT Premier 2018"]
[Site "Rio Achaia"]
[Date "2018.07.12"]
[Round "4"]
[White "Georgiou, Kostantinos"]
[Black "Mitsis, Georgios"]
[Result "1/2-1/2"]
[ECO "A46"]
[WhiteElo "2242"]
[BlackElo "2350"]
[Annotator "NA"]
[PlyCount "116"]
[EventDate "2018.07.10"]
[EventType "team-tourn"]
[EventCountry "GRE"]
[SourceTitle "playchess.com"]
[Source "ChessBase"]
[SourceQuality "1"]
[TimeControl "40/5400+30:1800+30"]

1. d4 {[%emt 0:00:00]} Nf6 {[%emt 0:02:50]} 2. Nf3 {[%emt 0:00:00]} e6 {[%emt 0:00:14]} 3. g3 {[%emt 0:00:24]} d5 {[%emt 0:03:13]} 4. Bg2 {[%emt 0:00:17]} c5 {[%emt 0:01:22]} 5. O-O {[%emt 0:01:27]} cxd4 {[%emt 0:00:13]} 6. Nxd4 {[%emt 0:01:01]} e5 {[%emt 0:00:41]} 7. Nb3 {[%emt 0:01:43]} Be6 {[%emt 0:01:13]} 8. c4 {[%emt 0:03:29]} Nc6 {[%emt 0:03:30]} 9. cxd5 {[%emt 0:04:24]} Nxd5 {[%emt 0:01:31]} 10. N1d2 {[%emt 0:05:04]} Qc7 {[%emt 0:24:42]} 11. Ne4 {[%emt 0:05:27]} O-O-O {[%emt 0:00:42]} 12. Bd2 {[%emt 0:07:06]} Nb6 {[%emt 0:03:16]} 13. Qc2 {[%emt 0:09:26]} Bxb3 {[%emt 0:16:42]} 14. axb3 {[%emt 0:06:33]} Nd4 {[%emt 0:00:17]} 15. Qd1 {[%emt 0:05:24]} Kb8 {[%emt 0:01:02]} 16. e3 {[%emt 0:02:58]} Nc6 {[%emt 0:03:44]} 17. Qf3 {[%emt 0:05:07]} f6 {[%emt 0:03:22]} 18. Rfc1 {[%emt 0:04:23]} Qd7 {[%emt 0:06:18]} 19. Ba5 {[%emt 0:09:16]} Nxa5 {[%emt 0:00:42]} 20. Rxa5 {[%emt 0:00:12]} Bb4 {[%emt 0:00:15]} 21. Nc5 {[%emt 0:02:33]} Bxc5 {[%emt 0:00:14]} 22. Raxc5 {[%emt 0:00:09]} Rc8 {[%emt 0:00:10]} 23. b4 {[%emt 0:01:09]} Rhd8 {[%emt 0:06:33]} 24. Ra1 {[%emt 0:04:36]} Rc7 {[%emt 0:01:22]} 25. Rca5 {[%emt 0:02:17]} Nc8 {[%emt 0:02:55]} 26. h4 {[%emt 0:02:06]} Qe7 {[%emt 0:02:08]} 27. Qe4 {[%emt 0:03:28]} g6 {[%emt 0:00:43]} 28. h5 {[%emt 0:04:22]} Nd6 {[%emt 0:01:09]} 29. Qb1 {[%emt 0:04:37]} b6 {[%emt 0:02:17]} 30. Ra6 {[%emt 0:00:08]} e4 {[%emt 0:00:34]} 31. h6 {[%emt 0:03:49]} f5 {[%emt 0:00:05]} 32. Qe1 {[%emt 0:00:53]} Nc8 {[%emt 0:05:34]} 33. Bf1 {[%emt 0:00:49]} Qd6 {[%emt 0:01:29]} 34. b3 {[%emt 0:01:09]} Qf6 {[%emt 0:05:05]} 35. Bc4 {[%emt 0:00:32]} g5 {[%emt 0:00:27]} 36. Rd1 {[%emt 0:00:56]} Rcd7 {[%emt 0:00:19]} 37. Raa1 {[%emt 0:00:34]} Qxh6 {[%emt 0:00:32]} 38. Rxd7 {[%emt 0:00:35]} Rxd7 {[%emt 0:00:01]} 39. Qc3 {[%emt 0:00:24]} Qg7 {[%emt 0:01:29]} 40. Qxg7 {[%emt 0:00:00]} Rxg7 {[%emt 0:00:00]} 41. Be6 {[%emt 0:00:52]} Nd6 {[%emt 0:02:23]} 42. Rd1 {[%emt 0:04:10]} Kc7 {[%emt 0:00:51]} 43. Rd5 {[%emt 0:03:03]} Re7 {[%emt 0:01:08]} 44. Bg8 {[%emt 0:01:18]} a6 {[%emt 0:01:24]} 45. Rd1 {[%emt 0:05:07]} h6 {[%emt 0:04:57]} 46. Bd5 {[%emt 0:01:50]} Re5 {[%emt 0:02:17]} 47. Rc1+ {[%emt 0:01:28]} Kd7 {[%emt 0:00:21]} 48. Bc6+ {[%emt 0:01:15]} Ke7 {[%emt 0:00:13]} 49. Kg2 {[%emt 0:00:46]} a5 {[%emt 0:05:18]} 50. bxa5 {[%emt 0:01:50]} bxa5 {[%emt 0:08:43]} 51. Ba4 {[%emt 0:03:13]} Rd5 {[%emt 0:00:22]} 52. Bc6 {[%emt 0:03:12]} Rd2 {[%emt 0:00:35]} 53. Rc5 {[%emt 0:02:08]} Rb2 {[%emt 0:02:04]} 54. Ba4 {[%emt 0:02:27]} Ke6 {[%emt 0:00:11]} 55. Rxa5 {[%emt 0:00:35]} Nf7 {[%emt 0:01:39]} 56. Ra6+ {[%emt 0:00:24]} Ke7 {[%emt 0:00:06]} 57. Ra7+ {[%emt 0:00:20]} Kf6 {[%emt 0:00:05]} 58. Ra6+ {[%emt 0:00:17]} Ke7 {[%emt 0:00:22]} 1/2-1/2

[Event "46th GRE-chT Premier 2018"]
[Site "Rio Achaia"]
[Date "2018.07.12"]
[Round "4"]
[White "Grigoriadis, Mihail"]
[Black "Korniotis, Filippos"]
[Result "0-1"]
[ECO "A45"]
[WhiteElo "2236"]
[BlackElo "2163"]
[Annotator "NA"]
[PlyCount "120"]
[EventDate "2018.07.10"]
[EventType "team-tourn"]
[EventCountry "GRE"]
[SourceTitle "playchess.com"]
[Source "ChessBase"]
[SourceQuality "1"]
[TimeControl "40/5400+30:1800+30"]

1. d4 {[%emt 0:10:52]} Nf6 {[%emt 0:00:00]} 2. Bf4 {[%emt 0:00:03]} g6 {[%emt 0:00:22]} 3. Nc3 {[%emt 0:00:05]} d5 {[%emt 0:00:08]} 4. e3 {[%emt 0:00:04]} Bg7 {[%emt 0:00:16]} 5. h4 {[%emt 0:00:04]} h5 {[%emt 0:10:00]} 6. Nb5 {[%emt 0:04:04]} Na6 {[%emt 0:01:30]} 7. Be2 {[%emt 0:00:04]} c6 {[%emt 0:19:59]} 8. Nc3 {[%emt 0:00:11]} c5 {[%emt 0:00:06]} 9. Nf3 {[%emt 0:03:16]} Bf5 {[%emt 0:16:26]} 10. O-O {[%emt 0:09:30]} O-O {[%emt 0:01:35]} 11. Ne5 {[%emt 0:02:34]} Nb4 {[%emt 0:04:00]} 12. Rc1 {[%emt 0:15:12]} Rc8 {[%emt 0:00:09]} 13. a3 {[%emt 0:03:52]} Na6 {[%emt 0:10:58]} 14. f3 {[%emt 0:17:06]} cxd4 {[%emt 0:03:33]} 15. exd4 {[%emt 0:00:08]} Qb6 {[%emt 0:01:27]} 16. Na4 {[%emt 0:00:15]} Qa5 {[%emt 0:02:15]} 17. c3 {[%emt 0:00:23]} b5 {[%emt 0:06:35]} 18. b4 {[%emt 0:01:59]} Nxb4 {[%emt 0:03:01]} 19. axb4 {[%emt 0:02:32]} Qxa4 {[%emt 0:00:05]} 20. Qxa4 {[%emt 0:01:56]} bxa4 {[%emt 0:00:02]} 21. Ba6 {[%emt 0:00:46]} Ra8 {[%emt 0:06:04]} 22. Nc6 {[%emt 0:05:55]} Kh7 {[%emt 0:01:41]} 23. Bb7 {[%emt 0:02:26]} Rae8 {[%emt 0:01:45]} 24. Nxa7 {[%emt 0:01:49]} Bh6 {[%emt 0:01:19]} 25. Bxh6 {[%emt 0:00:17]} Kxh6 {[%emt 0:00:01]} 26. Nc6 {[%emt 0:02:02]} Nd7 {[%emt 0:01:23]} 27. Rfe1 {[%emt 0:06:37]} e6 {[%emt 0:00:02]} 28. Na5 {[%emt 0:01:08]} Nb6 {[%emt 0:00:41]} 29. Bc6 {[%emt 0:00:13]} Rc8 {[%emt 0:00:29]} 30. Re2 {[%emt 0:01:47]} Rc7 {[%emt 0:00:28]} 31. Ra2 {[%emt 0:01:08]} Rfc8 {[%emt 0:00:24]} 32. b5 {[%emt 0:00:29]} Rb8 {[%emt 0:01:41]} 33. c4 {[%emt 0:03:10]} Ra7 {[%emt 0:01:12]} 34. c5 {[%emt 0:00:59]} Rxa5 {[%emt 0:00:17]} 35. cxb6 {[%emt 0:00:06]} Rxb6 {[%emt 0:00:01]} 36. Rc3 {[%emt 0:00:59]} e5 {[%emt 0:04:24]} 37. dxe5 {[%emt 0:01:00]} d4 {[%emt 0:00:01]} 38. Rca3 {[%emt 0:01:08]} d3 {[%emt 0:00:01]} 39. Kf2 {[%emt 0:00:43]} Be6 {[%emt 0:00:04]} 40. Rxa4 {[%emt 0:00:00]} d2 {[%emt 0:00:00]} 41. Rxa5 {[%emt 0:05:17]} d1=Q {[%emt 0:00:31]} 42. R2a3 {[%emt 0:00:07]} Qd4+ {[%emt 0:00:15]} 43. Kg3 {[%emt 0:00:12]} Qxe5+ {[%emt 0:00:09]} 44. Kf2 {[%emt 0:00:05]} Bc4 {[%emt 0:00:45]} 45. R3a4 {[%emt 0:04:05]} Qe2+ {[%emt 0:00:10]} 46. Kg3 {[%emt 0:00:06]} Qe1+ {[%emt 0:04:50]} 47. Kh3 {[%emt 0:00:42]} Qh1+ {[%emt 0:00:11]} 48. Kg3 {[%emt 0:00:06]} Qe1+ {[%emt 0:02:14]} 49. Kh3 {[%emt 0:00:52]} Be6+ {[%emt 0:07:29]} 50. Kh2 {[%emt 0:00:16]} Bb3 {[%emt 0:01:09]} 51. Ra1 {[%emt 0:01:12]} Qxh4+ {[%emt 0:00:07]} 52. Kg1 {[%emt 0:00:04]} Bd5 {[%emt 0:05:04]} 53. Bxd5 {[%emt 0:01:02]} Qd4+ {[%emt 0:00:06]} 54. Kh1 {[%emt 0:00:03]} Qxd5 {[%emt 0:00:05]} 55. R1a4 {[%emt 0:01:39]} Rxb5 {[%emt 0:00:45]} 56. Rxb5 {[%emt 0:00:05]} Qxb5 {[%emt 0:00:04]} 57. Re4 {[%emt 0:00:06]} Qf1+ {[%emt 0:00:23]} 58. Kh2 {[%emt 0:00:06]} Qf2 {[%emt 0:00:22]} 59. Rc4 {[%emt 0:00:14]} h4 {[%emt 0:00:30]} 60. Re4 {[%emt 0:00:06]} Qg3+ {[%emt 0:00:15]} 0-1

[Event "46th GRE-chT Premier 2018"]
[Site "Rio Achaia"]
[Date "2018.07.12"]
[Round "4"]
[White "Alexakis, Dimitris"]
[Black "Georgakopoulos, Nikolaos K"]
[Result "0-1"]
[ECO "B33"]
[WhiteElo "2232"]
[BlackElo "2033"]
[Annotator "NA"]
[PlyCount "84"]
[EventDate "2018.07.10"]
[EventType "team-tourn"]
[EventCountry "GRE"]
[SourceTitle "playchess.com"]
[Source "ChessBase"]
[SourceQuality "1"]
[TimeControl "40/5400+30:1800+30"]

1. e4 {[%emt 0:08:14]} c5 {[%emt 0:00:00]} 2. Nf3 {[%emt 0:00:20]} Nc6 {[%emt 0:00:00]} 3. d4 {[%emt 0:00:24]} cxd4 {[%emt 0:00:00]} 4. Nxd4 {[%emt 0:00:10]} Nf6 {[%emt 0:00:03]} 5. Nc3 {[%emt 0:00:07]} e5 {[%emt 0:00:08]} 6. Ndb5 {[%emt 0:00:07]} d6 {[%emt 0:00:13]} 7. Bg5 {[%emt 0:00:07]} a6 {[%emt 0:00:08]} 8. Na3 {[%emt 0:00:07]} b5 {[%emt 0:00:08]} 9. Bxf6 {[%emt 0:00:04]} gxf6 {[%emt 0:00:08]} 10. Nd5 {[%emt 0:00:05]} Bg7 {[%emt 0:00:11]} 11. c3 {[%emt 0:00:09]} f5 {[%emt 0:00:20]} 12. exf5 {[%emt 0:00:08]} Bxf5 {[%emt 0:00:14]} 13. Nc2 {[%emt 0:00:07]} O-O {[%emt 0:01:21]} 14. Nce3 {[%emt 0:00:08]} Be6 {[%emt 0:00:32]} 15. Bd3 {[%emt 0:00:19]} f5 {[%emt 0:00:11]} 16. O-O {[%emt 0:00:07]} Ra7 {[%emt 0:04:26]} 17. a4 {[%emt 0:00:09]} b4 {[%emt 0:33:00]} 18. cxb4 {[%emt 0:01:28]} Kh8 {[%emt 0:01:15]} 19. Rc1 {[%emt 0:28:42]} Ne7 {[%emt 0:20:54]} 20. Bc4 {[%emt 0:12:34]} f4 {[%emt 0:23:57]} 21. Nxe7 {[%emt 0:08:05]} Rxe7 {[%emt 0:00:06]} 22. Nd5 {[%emt 0:12:38]} Bxd5 {[%emt 0:01:52]} 23. Bxd5 {[%emt 0:15:07]} e4 {[%emt 0:00:25]} 24. Rc4 {[%emt 0:00:27]} e3 {[%emt 0:05:11]} 25. fxe3 {[%emt 0:03:05]} fxe3 {[%emt 0:02:40]} 26. Qe2 {[%emt 0:01:24]} Rxf1+ {[%emt 0:01:42]} 27. Kxf1 {[%emt 0:00:23]} Re8 {[%emt 0:01:00]} 28. Rc2 {[%emt 0:07:48]} Qg5 {[%emt 0:03:09]} 29. Bf3 {[%emt 0:00:18]} d5 {[%emt 0:00:42]} 30. b5 {[%emt 0:01:26]} d4 {[%emt 0:00:31]} 31. bxa6 {[%emt 0:00:24]} Qf5 {[%emt 0:00:31]} 32. Qb5 {[%emt 0:00:47]} Qf7 33. a7 {[%emt 0:00:26]} Rd8 {[%emt 0:01:00]} 34. Qb7 {[%emt 0:00:31]} Qxb7 {[%emt 0:00:31]} 35. Bxb7 {[%emt 0:00:03]} d3 {[%emt 0:00:10]} 36. Rc8 {[%emt 0:00:54]} e2+ {[%emt 0:00:37]} 37. Kf2 {[%emt 0:00:34]} Bd4+ {[%emt 0:00:29]} 38. Ke1 {[%emt 0:00:28]} Bc3+ {[%emt 0:00:34]} 39. bxc3 {[%emt 0:00:05]} d2+ {[%emt 0:00:03]} 40. Kxe2 {[%emt 0:00:00]} d1=Q+ {[%emt 0:00:00]} 41. Kf2 {[%emt 0:00:10]} Rxc8 {[%emt 0:01:37]} 42. Bxc8 {[%emt 0:00:02]} Qxa4 0-1

[Event "46th GRE-chT Premier 2018"]
[Site "Rio Achaia"]
[Date "2018.07.12"]
[Round "4"]
[White "Juhasz, Barbara"]
[Black "Markaki, Sofia"]
[Result "1-0"]
[ECO "B51"]
[WhiteElo "2227"]
[BlackElo "1694"]
[Annotator "NA"]
[PlyCount "87"]
[EventDate "2018.07.10"]
[EventType "team-tourn"]
[EventCountry "GRE"]
[SourceTitle "playchess.com"]
[Source "ChessBase"]
[SourceQuality "1"]
[TimeControl "40/5400+30:1800+30"]

1. e4 {[%emt 0:00:00]} c5 {[%emt 0:00:00]} 2. Nf3 {[%emt 0:00:00]} d6 {[%emt 0:00:00]} 3. Bb5+ {[%emt 0:00:00]} Nd7 {[%emt 0:00:28]} 4. d4 {[%emt 0:00:13]} cxd4 {[%emt 0:00:13]} 5. Qxd4 {[%emt 0:00:06]} a6 {[%emt 0:05:07]} 6. Bxd7+ {[%emt 0:00:06]} Qxd7 {[%emt 0:00:10]} 7. c4 {[%emt 0:00:45]} Nf6 {[%emt 0:09:23]} 8. Nc3 {[%emt 0:14:10]} e6 {[%emt 0:04:47]} 9. O-O {[%emt 0:09:40]} Be7 {[%emt 0:00:10]} 10. Rd1 {[%emt 0:00:19]} O-O {[%emt 0:06:05]} 11. b3 {[%emt 0:00:28]} b5 {[%emt 0:24:45]} 12. cxb5 {[%emt 0:10:50]} axb5 {[%emt 0:00:06]} 13. e5 {[%emt 0:00:00]} Ne8 {[%emt 0:14:52]} 14. exd6 {[%emt 0:05:47]} Nxd6 {[%emt 0:00:56]} 15. Bb2 {[%emt 0:11:45]} f6 {[%emt 0:04:45]} 16. Qe3 {[%emt 0:13:43]} Qb7 {[%emt 0:02:16]} 17. Rd2 {[%emt 0:04:05]} b4 {[%emt 0:03:52]} 18. Na4 {[%emt 0:03:30]} Nf5 {[%emt 0:00:39]} 19. Qe2 {[%emt 0:00:50]} Qa6 {[%emt 0:04:08]} 20. Qd1 {[%emt 0:07:40]} e5 {[%emt 0:01:42]} 21. Rc1 {[%emt 0:00:20]} Be6 {[%emt 0:04:57]} 22. h3 {[%emt 0:02:01]} Rac8 {[%emt 0:02:30]} 23. Rcc2 {[%emt 0:06:47]} Rxc2 {[%emt 0:00:41]} 24. Rxc2 {[%emt 0:00:39]} Rc8 {[%emt 0:00:18]} 25. Bc1 {[%emt 0:00:50]} e4 {[%emt 0:04:19]} 26. Ne1 {[%emt 0:01:15]} Kf7 {[%emt 0:02:19]} 27. Rxc8 {[%emt 0:00:19]} Qxc8 {[%emt 0:00:07]} 28. Nc2 {[%emt 0:00:14]} g6 {[%emt 0:00:54]} 29. Ne3 {[%emt 0:01:14]} Nh4 {[%emt 0:00:45]} 30. Bb2 {[%emt 0:01:46]} Kg7 {[%emt 0:01:37]} 31. Qd4 {[%emt 0:00:18]} Qc6 {[%emt 0:00:41]} 32. Nb6 {[%emt 0:01:30]} Bxh3 {[%emt 0:01:13]} 33. Nbd5 {[%emt 0:01:19]} Qe6 {[%emt 0:00:31]} 34. Nf4 {[%emt 0:00:14]} Qc8 {[%emt 0:01:08]} 35. Nxh3 {[%emt 0:00:30]} Qxh3 {[%emt 0:00:32]} 36. Qxe4 {[%emt 0:00:43]} Qd7 {[%emt 0:00:25]} 37. Qxh4 {[%emt 0:00:12]} Qd2 {[%emt 0:00:06]} 38. Qd4 {[%emt 0:01:21]} Qe1+ {[%emt 0:00:13]} 39. Nf1 {[%emt 0:00:03]} h5 {[%emt 0:00:32]} 40. Qe3 {[%emt 0:00:00]} Qxe3 {[%emt 0:00:00]} 41. Nxe3 {[%emt 0:02:55]} g5 {[%emt 0:02:40]} 42. Nf5+ {[%emt 0:01:24]} Kf7 {[%emt 0:00:05]} 43. Nxe7 {[%emt 0:00:05]} Kxe7 {[%emt 0:00:04]} 44. Bd4 {[%emt 0:00:05]} 1-0